bitfinex/quotes_SOLUSD_20241210
["timestamp","ask_amount","ask_price","bid_price","bid_amount"]
[1733795287816,1.5703,218.64,218.43,23.79925151]
[1733795288009,1.5703,218.64,218.42,13.79925151]
[1733795288208,1.5703,218.64,218.42,10.0]
[1733795288428,1.5703,218.64,218.44,10.0]
[1733795288637,1.5703,218.64,218.46,23.79925151]
[1733795289045,1.5703,218.64,218.48,312.0]
[1733795289218,1.5703,218.64,218.49,0.12549]
[1733795289744,1.5703,218.64,218.44,10.0]
[1733795289947,1.5703,218.64,218.43,23.79925151]
[1733795290131,1.5703,218.64,218.44,10.0]
[1733795290740,20.0,218.6,218.41,6.0576]
[1733795290942,1.5786,218.59,218.41,6.0576]
[1733795291146,1.5786,218.59,218.37,33.79925151]
[1733795291812,1.5786,218.59,218.37,20.0]
[1733795292016,0.12549,218.58,218.36,6.0576]
[1733795292235,20.0,218.55,218.36,6.0576]
[1733795292442,1.5786,218.54,218.36,6.0576]
[1733795292749,1.5786,218.54,218.38,312.0]
[1733795293112,20.0,218.53,218.38,312.0]
[1733795293316,1.5786,218.48,218.38,312.0]
[1733795293515,1.5786,218.48,218.28,33.79925151]
[1733795293745,1.5786,218.48,218.3,10.0]
[1733795294039,1.5786,218.48,218.34,10.0]
[1733795294242,1.5786,218.48,218.38,13.79925151]
[1733795294430,1.5786,218.48,218.37,23.79925151]
[1733795294637,1.5786,218.48,218.37,0.12549]
[1733795294946,1.5786,218.48,218.36,0.12549]
[1733795295168,1.5786,218.48,218.32,13.92474151]
[1733795295446,1.5786,218.48,218.28,23.79925151]
[1733795295620,1.5786,218.48,218.29,23.79925151]
[1733795295824,1.5786,218.48,218.3,13.79925151]
[1733795296459,1.5786,218.48,218.34,312.0]
[1733795296850,1.5786,218.48,218.26,20.05375151]
[1733795297032,1.5786,218.43,218.26,6.2545]
[1733795297246,1.5786,218.43,218.24,20.5330683]
[1733795297442,1.5786,218.43,218.26,23.79925151]
[1733795297664,1.5786,218.43,218.26,33.79925151]
[1733795298037,1.5786,218.43,218.24,14.33231981]
[1733795298252,1.5786,218.43,218.24,34.33231981]
[1733795298953,1.5786,218.43,218.24,0.5330683]
[1733795299262,1.5786,218.38,218.24,0.5330683]
[1733795299944,1.5786,218.38,218.26,13.79925151]
[1733795300471,1.5786,218.38,218.24,312.5330683]
[1733795300762,1.5786,218.38,218.25,0.12549]
[1733795301139,1.5786,218.38,218.27,0.12549]
[1733795301838,1.5786,218.38,218.28,13.79925151]
[1733795302041,1.5786,218.38,218.29,0.12549]
[1733795302559,1.5786,218.38,218.25,13.79925151]
[1733795302735,1.5786,218.38,218.24,0.5330683]
[1733795303669,1.5786,218.38,218.26,312.0]
[1733795304549,1.5786,218.38,218.27,0.12549]
[1733795304745,1.5786,218.38,218.25,0.12549]
[1733795306568,1.5786,218.38,218.24,0.5330683]
[1733795306975,20.0,218.34,218.24,0.5330683]
[1733795307177,1.5247,218.33,218.24,0.5330683]
[1733795308370,1.5247,218.28,218.24,0.5330683]
[1733795314862,1.5247,218.28,218.1,19.81715151]
[1733795315255,1.5247,218.28,218.11,312.0]
[1733795315457,1.5247,218.23,218.11,312.0]
[1733795315659,1.5247,218.23,218.03,32.68856181]
[1733795315852,1.5247,218.23,218.04,13.79925151]
[1733795316077,1.5247,218.23,218.08,13.79925151]
[1733795316253,1.5247,218.23,218.1,13.79925151]
[1733795316851,1.5247,218.23,218.09,13.92474151]
[1733795317557,1.5247,218.23,218.1,13.79925151]
[1733795317772,1.5247,218.23,218.09,0.12549]
[1733795317964,1.5247,218.23,218.09,13.92474151]
[1733795318682,1.5247,218.23,218.11,312.0]
[1733795318890,1.5247,218.23,218.04,13.79925151]
[1733795319179,20.0,218.19,218.03,0.5330683]
[1733795320260,1.6379,218.18,218.03,0.5330683]
[1733795321070,8.2595,218.17,218.03,0.5330683]
[1733795321279,1.6379,218.13,218.03,0.5330683]
[1733795321588,21.6379,218.13,218.03,0.5330683]
[1733795322280,1.6379,218.13,218.03,0.5330683]
[1733795323157,20.0,218.09,218.03,0.5330683]
[1733795323463,1.6379,218.08,218.03,0.5330683]
[1733795323664,1.6379,218.08,217.87,22.22262752]
[1733795323867,6.6216,218.07,217.87,22.22262752]
[1733795324177,1.6379,218.03,217.86,22.22262752]
[1733795324481,1.6379,218.03,217.85,28.74072752]
[1733795325054,1.6379,218.03,217.85,22.22262752]
[1733795325282,1.6379,218.03,217.88,0.12549]
[1733795325854,1.6379,218.03,217.88,312.12549]
[1733795326283,1.6379,218.03,217.88,312.0]
[1733795326702,1.6379,218.03,217.88,334.22262752]
[1733795327475,1.6379,218.03,217.89,0.12549]
[1733795327680,1.6379,218.03,217.92,22.22262752]
[1733795327883,1.6379,218.03,217.95,0.12549]
[1733795328589,1.6379,218.03,217.94,0.12549]
[1733795329199,1.6379,218.03,217.89,22.22262752]
[1733795329502,1.6379,218.03,217.89,0.12549]
[1733795329797,1.6379,218.03,217.87,22.22262752]
[1733795330003,1.6379,218.03,217.91,22.22262752]
[1733795330234,1.6379,218.03,217.95,22.22262752]
[1733795330509,1.6379,218.03,217.93,22.22262752]
[1733795330802,1.6379,218.03,217.94,0.12549]
[1733795331197,1.6379,218.03,217.94,22.34811752]
[1733795332092,1.6379,218.03,217.9,22.22262752]
[1733795332277,1.6379,218.03,217.87,22.22262752]
[1733795332893,1.6379,218.03,217.89,22.22262752]
[1733795333096,1.6379,218.03,217.91,22.22262752]
[1733795333399,1.6379,218.03,217.94,22.22262752]
[1733795333780,1.6379,218.03,217.95,0.12549]
[1733795333981,1.6379,218.03,217.94,0.12549]
[1733795334199,1.6379,218.03,217.94,312.12549]
[1733795334592,1.6379,218.03,217.87,31.4744]
[1733795334593,1.6379,218.03,217.91,0.12549]
[1733795334798,1.6379,218.03,217.9,22.22262752]
[1733795334799,1.6379,218.03,217.9,0.12549]
[1733795335103,1.6379,218.03,217.9,22.22262752]
[1733795335308,1.6379,218.03,217.91,0.12549]
[1733795336306,1.6379,218.03,217.91,22.34811752]
[1733795336612,1.6379,218.03,217.93,22.22262752]
[1733795336802,1.6379,218.03,217.91,22.34811752]
[1733795336980,1.6379,218.03,217.95,22.22262752]
[1733795337181,1.6379,218.03,217.97,0.12549]
[1733795337597,1.6379,218.03,217.98,22.22262752]
[1733795337799,22.21429276,218.42,217.97,312.12549]
[1733795337800,1.6379,218.08,218.01,0.12549]
[1733795338000,1.6379,218.08,218.01,22.34811752]
[1733795338310,1.6379,218.08,218.01,0.12549]
[1733795339014,1.6379,218.08,218.01,22.34811752]
[1733795339493,1.6379,218.08,218.03,22.22262752]
[1733795339695,1.5842,218.12,218.04,0.12549]
[1733795340001,1.5842,218.12,218.06,0.12549]
[1733795340319,1.5842,218.12,218.06,22.34811752]
[1733795340689,1.5842,218.12,218.07,22.22262752]
[1733795340917,1.5842,218.12,218.08,0.12549]
[1733795341322,1.5842,218.12,218.02,0.12549]
[1733795341615,1.5842,218.12,218.03,22.22262752]
[1733795341814,1.5842,218.12,218.03,0.12549]
[1733795342715,1.5842,218.12,218.06,0.12549]
[1733795343404,1.5842,218.12,218.05,0.12549]
[1733795343810,1.5842,218.12,218.03,0.12549]
[1733795345118,1.5842,218.12,218.02,0.12549]
[1733795345304,1.5842,218.12,218.05,0.12549]
[1733795346596,1.5842,218.12,218.04,0.12549]
[1733795346793,1.5842,218.12,218.04,22.34811752]
[1733795347328,1.5842,218.12,218.07,22.34811752]
[1733795347495,1.5842,218.17,218.11,22.22262752]
[1733795347818,1.5842,218.17,218.12,0.12549]
[1733795348209,1.5842,218.17,218.13,0.12549]
[1733795349220,1.5842,218.17,218.13,22.34811752]
[1733795349401,1.5842,218.17,218.13,0.12549]
[1733795349724,1.5842,218.17,218.12,0.12549]
[1733795350106,1.5842,218.17,218.11,0.12549]
[1733795350420,1.5842,218.17,218.13,22.22262752]
[1733795350601,1.5842,218.17,218.14,0.12549]
[1733795350931,1.5842,218.22,218.15,22.22262752]
[1733795351230,1.5842,218.22,218.12,22.22262752]
[1733795351528,1.5842,218.22,218.08,22.22262752]
[1733795351697,20.0,218.2,218.08,22.22262752]
[1733795352799,20.0,218.2,218.09,0.12549]
[1733795352994,20.0,218.2,218.09,22.34811752]
[1733795353296,20.0,218.2,218.13,0.12549]
[1733795353895,1.5842,218.22,218.16,22.22262752]
[1733795354096,1.5842,218.22,218.17,0.12549]
[1733795354292,1.5842,218.22,218.17,22.34811752]
[1733795354927,1.5842,218.22,218.17,0.12549]
[1733795355100,1.5842,218.22,218.16,312.0]
[1733795355419,1.5842,218.22,218.02,44.22422752]
[1733795355420,1.5842,218.22,218.1,22.22262752]
[1733795355725,1.5842,218.22,218.08,22.22262752]
[1733795356610,1.5842,218.22,218.13,22.22262752]
[1733795356915,1.5842,218.22,218.05,21.4652]
[1733795357114,20.0,218.18,218.04,22.22262752]
[1733795357318,20.0,218.18,218.01,11.4669]
[1733795357319,20.0,218.18,218.06,22.22262752]
[1733795357530,20.0,218.18,218.11,22.22262752]
[1733795357821,20.0,218.18,218.13,22.22262752]
[1733795358023,1.5842,218.22,218.14,22.22262752]
[1733795358321,1.5842,218.22,218.16,22.22262752]
[1733795358530,1.5842,218.22,218.17,22.34811752]
[1733795358823,1.5842,218.22,218.18,0.12549]
[1733795359220,1.5842,218.22,218.15,0.12549]
[1733795359920,1.5842,218.22,218.14,22.34811752]
[1733795360110,1.5842,218.22,218.16,22.34811752]
[1733795360427,1.5842,218.22,218.16,0.12549]
[1733795361625,1.5842,218.22,218.18,0.12549]
[1733795363830,1.5842,218.22,218.18,22.34811752]
[1733795364501,1.5043,218.28,218.18,22.34811752]
[1733795364700,1.5043,218.28,218.26,22.22262752]
[1733795364926,1.5043,218.28,218.25,22.22262752]
[1733795365127,1.5043,218.28,218.25,0.12549]
[1733795365909,1.5043,218.28,218.24,0.12549]
[1733795366498,1.5043,218.28,218.22,22.22262752]
[1733795366704,1.5043,218.28,218.23,0.12549]
[1733795367748,1.5043,218.28,218.21,22.22262752]
[1733795368032,1.5043,218.28,218.22,22.34811752]
[1733795368539,1.5043,218.28,218.23,22.22262752]
[1733795368702,1.5043,218.28,218.25,22.22262752]
[1733795369526,1.5043,218.28,218.22,0.12549]
[1733795370906,1.5043,218.28,218.23,22.22262752]
[1733795371129,1.5043,218.28,218.22,22.34811752]
[1733795372617,1.5043,218.28,218.23,22.22262752]
[1733795375037,1.5043,218.28,218.22,22.34811752]
[1733795376328,1.5043,218.28,218.23,22.22262752]
[1733795376625,1.5043,218.28,218.22,22.34811752]
[1733795377340,1.5043,218.28,218.21,22.22262752]
[1733795377521,1.5043,218.28,218.16,22.22262752]
[1733795377718,1.5043,218.28,218.1,23.29974864]
[1733795377719,1.5043,218.28,218.14,22.22262752]
[1733795378647,1.5043,218.28,218.13,22.22262752]
[1733795379934,1.5043,218.28,218.14,0.12549]
[1733795380251,1.5043,218.28,218.18,22.22262752]
[1733795380442,1.5043,218.28,218.17,22.22262752]
[1733795380749,1.5043,218.28,218.18,0.12549]
[1733795381349,1.5043,218.28,218.17,0.12549]
[1733795381849,1.5043,218.28,218.15,22.22262752]
[1733795382017,1.5043,218.28,218.15,0.12549]
[1733795382216,1.5043,218.28,218.15,22.34811752]
[1733795382624,1.5043,218.28,218.18,22.22262752]
[1733795382831,1.5043,218.28,218.21,0.12549]
[1733795383339,1.5043,218.28,218.22,22.22262752]
[1733795383644,1.5043,218.28,218.23,0.12549]
[1733795384719,1.5043,218.28,218.21,22.22262752]
[1733795384932,1.5043,218.28,218.22,22.22262752]
[1733795386520,1.5043,218.28,218.23,0.12549]
[1733795386719,1.5043,218.28,218.24,22.22262752]
[1733795386925,1.5043,218.28,218.25,0.12549]
[1733795387341,1.5043,218.28,218.26,22.22262752]
[1733795387553,1.5043,218.28,218.25,22.34811752]
[1733795388022,7.8976,218.33,218.27,0.12549]
[1733795388419,1.5786,218.33,218.29,0.12549]
[1733795388662,7.6953,218.38,218.32,22.22262752]
[1733795388824,7.6953,218.38,218.33,22.22262752]
[1733795388825,1.5786,218.38,218.33,22.22262752]
[1733795389152,1.5786,218.38,218.34,0.12549]
[1733795390039,6.1167,218.43,218.37,0.12549]
[1733795390755,6.1167,218.43,218.37,22.34811752]
[1733795391739,1.5786,218.44,218.39,22.22262752]
[1733795391951,1.5786,218.44,218.39,0.12549]
[1733795392144,1.5786,218.44,218.32,22.22262752]
[1733795393443,1.5786,218.44,218.33,0.12549]
[1733795394927,1.5786,218.44,218.29,22.22262752]
[1733795395133,1.5786,218.44,218.28,22.22262752]
[1733795395434,20.0,218.4,218.27,22.22262752]
[1733795395643,20.0,218.4,218.23,6.0117]
[1733795395847,20.0,218.4,218.26,22.22262752]
[1733795396663,20.0,218.4,218.31,22.22262752]
[1733795396827,20.0,218.4,218.32,22.22262752]
[1733795397035,20.0,218.4,218.33,0.12549]
[1733795397335,20.0,218.4,218.36,0.12549]
[1733795397957,20.0,218.4,218.35,0.12549]
[1733795398453,20.0,218.4,218.34,0.12549]
[1733795399032,1.5786,218.44,218.36,0.12549]
[1733795400275,1.5786,218.44,218.38,22.22262752]
[1733795400557,1.5786,218.44,218.4,0.12549]
[1733795400759,6.1167,218.48,218.4,22.34811752]
[1733795401233,6.1167,218.48,218.4,0.12549]
[1733795401438,6.1167,218.48,218.38,0.12549]
[1733795401850,1.5786,218.49,218.41,0.12549]
[1733795402168,1.5786,218.49,218.45,0.12549]
[1733795402581,6.1167,218.53,218.45,22.34811752]
[1733795402879,1.5786,218.54,218.45,22.34811752]
[1733795403049,1.5786,218.54,218.45,0.12549]
[1733795403248,1.5786,218.54,218.44,22.34811752]
[1733795403448,1.5786,218.54,218.46,22.22262752]
[1733795403752,1.5786,218.54,218.47,0.12549]
[1733795404274,1.5786,218.54,218.47,22.34811752]
[1733795405673,1.5786,218.54,218.47,334.34811752]
[1733795408352,1.5786,218.54,218.45,22.22262752]
[1733795408673,1.5786,218.54,218.39,22.22262752]
[1733795410258,1.5786,218.54,218.34,17.86183548]
[1733795410259,1.5786,218.54,218.43,22.22262752]
[1733795410456,1.5786,218.54,218.41,0.12549]
[1733795412074,1.5786,218.54,218.45,22.22262752]
[1733795412274,1.5786,218.54,218.47,22.34811752]
[1733795412946,1.5786,218.54,218.48,22.22262752]
[1733795413151,1.5786,218.54,218.47,0.12549]
[1733795413152,0.5330683,218.56,218.52,22.34811752]
[1733795413351,0.5330683,218.56,218.54,0.12549]
[1733795413574,0.5330683,218.56,218.54,22.34811752]
[1733795413756,0.5330683,218.56,218.54,0.12549]
[1733795413960,0.5330683,218.56,218.55,22.34811752]
[1733795414780,0.5330683,218.56,218.55,334.34811752]
[1733795414958,0.5330683,218.56,218.55,22.34811752]
[1733795418085,0.5330683,218.56,218.5,22.22262752]
[1733795418459,0.5330683,218.56,218.46,22.22262752]
[1733795418758,0.5330683,218.56,218.41,11.4461]
[1733795418759,0.5330683,218.56,218.47,22.22262752]
[1733795418975,0.5330683,218.56,218.51,22.22262752]
[1733795419184,0.5330683,218.56,218.53,22.22262752]
[1733795419558,0.5330683,218.56,218.52,22.22262752]
[1733795419887,0.5330683,218.56,218.53,22.22262752]
[1733795420088,0.5330683,218.56,218.54,0.12549]
[1733795422361,0.5330683,218.56,218.54,22.22262752]
[1733795422584,0.5330683,218.56,218.55,22.34811752]
[1733795422790,0.5330683,218.56,218.55,0.12549]
[1733795423090,0.5330683,218.56,218.55,22.34811752]
[1733795424177,6.83e-05,218.56,218.55,22.34811752]
[1733795424487,6.83e-05,218.56,218.55,44.57074504]
[1733795425300,6.83e-05,218.56,218.55,22.34811752]
[1733795425587,6.83e-05,218.56,218.55,334.34811752]
[1733795425786,6.83e-05,218.56,218.55,366.57074504]
[1733795425990,1.6033,218.7,218.57,10.0]
[1733795426179,1.6033,218.7,218.66,22.22262752]
[1733795426379,1.6033,218.7,218.67,0.12549]
[1733795426891,1.6033,218.7,218.66,0.12549]
[1733795427081,1.6033,218.7,218.65,0.12549]
[1733795427281,6.065,218.77,218.65,0.12549]
[1733795427282,20.0,218.74,218.65,0.12549]
[1733795427591,20.0,218.74,218.65,22.34811752]
[1733795428610,20.0,218.74,218.66,22.22262752]
[1733795428766,20.0,218.74,218.65,22.34811752]
[1733795429188,20.0,218.74,218.66,312.0]
[1733795429476,20.0,218.74,218.6,22.22262752]
[1733795429683,20.0,218.74,218.56,11.4383]
[1733795429684,20.0,218.74,218.61,22.22262752]
[1733795429890,20.0,218.74,218.6,22.22262752]
[1733795430092,20.0,218.74,218.61,22.22262752]
[1733795430972,20.0,218.74,218.62,0.12549]
[1733795431596,20.0,218.74,218.52,6.4817]
[1733795431597,20.0,218.74,218.59,22.22262752]
[1733795432385,20.0,218.74,218.61,22.22262752]
[1733795432588,1.6461,218.75,218.65,22.22262752]
[1733795432786,1.6461,218.75,218.66,22.34811752]
[1733795433005,1.6461,218.75,218.67,22.22262752]
[1733795433305,1.6461,218.75,218.68,0.12549]
[1733795433606,1.6461,218.75,218.71,22.22262752]
[1733795433801,1.6461,218.75,218.68,0.12549]
[1733795433802,1.6461,218.75,218.68,22.34811752]
[1733795434103,1.6461,218.75,218.68,0.12549]
[1733795434701,1.6461,218.75,218.63,6.2235]
[1733795434702,1.6461,218.75,218.66,22.22262752]
[1733795435005,1.6461,218.75,218.67,0.12549]
[1733795435180,1.6461,218.75,218.67,22.34811752]
[1733795435895,1.6461,218.75,218.69,0.12549]
[1733795436106,1.6461,218.75,218.69,22.34811752]
[1733795436887,1.6461,218.75,218.68,0.12549]
[1733795437087,1.6461,218.75,218.68,22.34811752]
[1733795438200,1.6461,218.75,218.71,0.12549]
[1733795438906,1.6461,218.75,218.71,22.34811752]
[1733795440394,1.6461,218.75,218.71,334.34811752]
[1733795440725,1.6461,218.8,218.71,312.12549]
[1733795440891,1.6461,218.8,218.74,22.22262752]
[1733795441308,1.6461,218.8,218.75,0.12549]
[1733795441905,1.6461,218.8,218.73,13.79800544]
[1733795442108,1.6461,218.8,218.72,13.79800544]
[1733795442309,1.6461,218.8,218.71,0.12549]
[1733795442310,20.0,218.79,218.71,0.12549]
[1733795442524,1.6461,218.8,218.71,13.92349544]
[1733795444398,1.6461,218.8,218.73,0.12549]
[1733795446797,1.6461,218.8,218.71,13.79800544]
[1733795446798,1.6461,218.8,218.72,13.92349544]
[1733795447131,1.6461,218.8,218.73,13.79800544]
[1733795447430,1.6461,218.8,218.74,0.12549]
[1733795449322,1.6461,218.8,218.73,13.79800544]
[1733795450098,1.6461,218.8,218.73,0.12549]
[1733795450606,1.6461,218.8,218.71,13.79800544]
[1733795450800,1.6461,218.8,218.7,13.79800544]
[1733795450997,1.6461,218.8,218.68,13.79800544]
[1733795451518,1.6461,218.8,218.67,13.79800544]
[1733795453108,1.6461,218.8,218.68,13.92349544]
[1733795454831,1.6461,218.8,218.67,13.79800544]
[1733795455717,1.6461,218.8,218.7,13.79800544]
[1733795455905,1.6461,218.8,218.71,13.79800544]
[1733795456331,1.6461,218.8,218.66,0.12549]
[1733795456332,1.6461,218.8,218.7,13.79800544]
[1733795456911,1.6461,218.8,218.71,0.12549]
[1733795457116,1.6461,218.8,218.71,13.79800544]
[1733795457521,1.6461,218.8,218.71,325.79800544]
[1733795457867,1.6461,218.8,218.71,312.0]
[1733795459523,1.6461,218.8,218.7,13.79800544]
[1733795459827,1.6461,218.8,218.67,13.79800544]
[1733795460033,1.6461,218.8,218.68,13.79800544]
[1733795460738,1.6461,218.8,218.69,13.79800544]
[1733795460913,1.6461,218.8,218.73,13.79800544]
[1733795461112,1.6461,218.8,218.74,13.79800544]
[1733795461308,1.6461,218.8,218.75,13.79800544]
[1733795462534,1.6461,218.8,218.75,325.79800544]
[1733795463716,1.6461,218.8,218.76,13.79800544]
[1733795463917,1.6461,218.8,218.77,13.92349544]
[1733795464223,1.5433,218.85,218.77,13.92349544]
[1733795464426,1.5433,218.85,218.77,25.35099544]
[1733795464815,10.0,219.0,218.83,0.8473634]
[1733795464816,9.1526366,219.0,218.83,0.8473634]
[1733795465043,10.94448871,219.0,218.84,13.79800544]
[1733795465422,20.94448871,219.0,218.83,14.64536884]
[1733795466033,1.79185211,219.0,218.85,14.64536884]
[1733795466229,19.1526366,219.02,218.86,13.79800544]
[1733795466756,10.96749029,219.02,218.86,13.79800544]
[1733795466923,4.13012253,219.05,218.91,0.8473634]
[1733795467115,10.0,219.07,218.91,0.8473634]
[1733795467318,1.85379281,219.07,218.91,0.8473634]
[1733795467545,10.0,219.09,218.91,0.8473634]
[1733795468048,8.0865,219.08,218.91,0.8473634]
[1733795468226,8.0865,219.08,218.93,0.8473634]
[1733795468965,1.5433,219.05,218.89,0.8473634]
[1733795469241,1.5433,219.05,218.89,14.64536884]
[1733795469817,20.0,219.03,218.89,14.64536884]
[1733795470522,21.5433,219.05,218.91,0.8473634]
[1733795471039,21.5433,219.05,218.93,0.8473634]
[1733795471624,1.5433,219.05,218.93,14.64536884]
[1733795471918,1.5433,219.05,218.93,0.8473634]
[1733795472546,10.0,219.04,218.91,0.8473634]
[1733795472863,10.0,219.04,218.88,0.8473634]
[1733795473041,20.0,219.01,218.9,0.8473634]
[1733795474315,1.85667144,219.04,218.9,0.8473634]
[1733795474514,21.5433,219.05,218.9,0.8473634]
[1733795474921,20.0,219.03,218.9,0.8473634]
[1733795475126,40.6959366,219.05,218.9,0.8473634]
[1733795475357,0.12549,219.04,218.88,0.8473634]
[1733795475521,20.0,218.98,218.84,7.0871634]
[1733795475718,1.5517,219.1,219.05,0.8473634]
[1733795476145,7.7252,219.15,219.05,0.8473634]
[1733795476340,7.7252,219.15,219.02,0.8473634]
[1733795476979,7.7252,219.15,219.04,0.8473634]
[1733795477134,7.7252,219.15,219.02,0.8473634]
[1733795477840,7.7252,219.15,219.0,6.1736]
[1733795477841,10.0,219.14,219.0,0.8473634]
[1733795478059,20.0,219.11,219.0,0.8473634]
[1733795478259,7.7252,219.15,219.01,0.8473634]
[1733795478435,7.7252,219.15,219.0,0.8473634]
[1733795478638,7.7252,219.15,219.01,0.8473634]
[1733795478835,7.7252,219.15,219.05,0.8473634]
[1733795479068,7.7252,219.15,219.01,0.8473634]
[1733795479461,20.0,219.11,219.01,0.8473634]
[1733795480170,20.0,219.12,219.01,14.64536884]
[1733795480541,20.0,219.12,219.01,0.8473634]
[1733795482676,20.0,219.12,219.01,14.64536884]
[1733795483157,20.0,219.12,219.01,0.8473634]
[1733795484647,21.80845083,219.12,219.01,0.8473634]
[1733795486274,20.0,219.12,219.01,0.8473634]
[1733795488062,20.0,219.1,219.01,0.8473634]
[1733795490785,9.55446152,219.15,218.95,6.1736]
[1733795490786,30.0,219.08,218.95,6.1736]
[1733795491074,32.42709812,219.15,218.84,6.8803634]
[1733795491075,20.0,218.98,218.84,6.8803634]
[1733795491260,20.0,218.98,218.84,6.033]
[1733795491781,20.0,219.0,218.87,13.79800544]
[1733795491961,20.0,219.03,218.93,14.64536884]
[1733795492162,1.5566,219.06,218.96,0.8473634]
[1733795493877,1.5566,219.06,218.98,0.8473634]
[1733795494187,1.5566,219.06,218.96,0.8473634]
[1733795494385,1.5566,219.06,218.95,6.033]
[1733795495428,1.5566,219.12,219.0,0.8473634]
[1733795495690,8.1628,219.17,219.03,0.8473634]
[1733795495862,10.00666466,219.17,219.03,0.8473634]
[1733795496757,20.00666466,219.17,219.03,0.8473634]
[1733795497167,20.0,219.14,219.03,0.8473634]
[1733795499365,3.40046466,219.17,219.03,0.8473634]
[1733795499683,3.40046466,219.17,219.05,0.8473634]
[1733795500694,20.0,219.16,219.05,0.8473634]
[1733795500856,20.0,219.16,219.03,0.8473634]
[1733795501180,3.40046466,219.17,219.06,0.8473634]
[1733795501486,20.0,219.16,219.05,0.8473634]
[1733795501960,3.40046466,219.17,219.05,0.8473634]
[1733795502157,10.0,219.15,219.03,0.8473634]
[1733795502357,20.0,219.12,219.01,0.8473634]
[1733795502864,20.0,219.12,219.03,0.8473634]
[1733795503065,20.0,219.12,219.01,0.8473634]
[1733795503467,20.0,219.12,219.02,0.8473634]
[1733795503890,23.40046466,219.17,219.03,0.8473634]
[1733795504088,23.40046466,219.17,219.05,0.8473634]
[1733795504289,3.40046466,219.17,219.05,0.8473634]
[1733795504456,3.40046466,219.17,219.07,0.8473634]
[1733795505792,3.40046466,219.17,219.06,6.5728]
[1733795505990,20.0,219.15,219.06,6.5728]
[1733795506192,20.0,219.12,219.01,7.4201634]
[1733795506967,20.0,219.12,219.01,6.5728]
[1733795507670,20.0,219.14,219.02,0.8473634]
[1733795509065,20.0,219.16,219.02,0.8473634]
[1733795509693,3.40046466,219.17,219.05,0.8473634]
[1733795510067,3.40046466,219.17,219.07,0.8473634]
[1733795510467,3.40046466,219.17,219.05,0.8473634]
[1733795510962,20.0,219.16,219.04,1.5406]
[1733795511284,20.0,219.12,219.01,6.5728]
[1733795511484,20.0,219.12,219.02,0.8473634]
[1733795512073,20.0,219.14,219.02,0.8473634]
[1733795512272,20.0,219.15,219.02,0.8473634]
[1733795512478,20.0,219.15,219.04,0.8473634]
[1733795512682,23.40046466,219.17,219.04,0.8473634]
[1733795514686,20.0,219.15,219.04,0.8473634]
[1733795515293,23.40046466,219.17,219.04,0.8473634]
[1733795516313,20.0,219.15,219.04,0.8473634]
[1733795518697,20.0,219.13,219.02,0.8473634]
[1733795518900,20.0,219.09,219.01,6.5728]
[1733795519222,10.12549,219.12,218.97,0.8473634]
[1733795519223,20.0,219.07,218.97,0.8473634]
[1733795520011,20.0,219.07,218.96,6.5728]
[1733795520211,20.0,219.07,218.97,0.8473634]
[1733795520411,20.0,219.09,218.97,0.8473634]
[1733795521198,20.0,219.11,218.97,0.8473634]
[1733795523597,1.8309527,219.14,219.02,0.8473634]
[1733795523814,10.0,219.14,219.0,0.8473634]
[1733795524211,10.0,219.14,218.98,0.8473634]
[1733795524800,10.0,219.14,219.0,0.8473634]
[1733795525011,20.0,219.11,219.0,0.8473634]
[1733795526224,20.0,219.11,218.98,0.8473634]
[1733795526438,10.0,219.14,218.96,6.5728]
[1733795526439,20.0,219.07,218.97,0.8473634]
[1733795528215,20.0,219.07,218.96,6.5728]
[1733795528414,20.0,219.07,218.97,0.8473634]
[1733795528795,20.0,219.09,218.97,0.8473634]
[1733795529322,20.0,219.07,218.97,0.8473634]
[1733795529715,20.0,219.07,218.96,6.5728]
[1733795529919,20.0,219.07,218.97,0.8473634]
[1733795530707,20.0,219.09,218.97,0.8473634]